[Event "*** Qualifier 4: Titled Tuesday 3|2 Blitz"]
[Site "Chess.com"]
[Date "2017.04.25"]
[Round "5"]
[White "Yaacovn"]
[Black "Zlatan56"]
[Result "0-1"]
[WhiteElo "2605"]
[BlackElo "2614"]
[TimeControl "180+2"]
[EndTime "14:02:51 PDT"]
[Termination "Zlatan56 won by resignation"]

1. d4 {[%clk 0:03:02]} 1... Nf6 {[%clk 0:02:59.8]} 2. Nf3 {[%clk 0:02:55.1]}
2... g6 {[%clk 0:02:58.5]} 3. e3 {[%clk 0:02:56]} 3... Bg7 {[%clk 0:02:59.4]} 4.
Be2 {[%clk 0:02:57.7]} 4... O-O {[%clk 0:03:00.7]} 5. O-O {[%clk 0:02:59.4]}
5... c5 {[%clk 0:03:01.5]} 6. b3 {[%clk 0:03:00.6]} 6... cxd4 {[%clk 0:02:57]}
7. Nxd4 {[%clk 0:03:01.5]} 7... Nc6 {[%clk 0:02:40.7]} 8. Bb2 {[%clk 0:02:58.7]}
8... d5 {[%clk 0:02:39.7]} 9. Nxc6 {[%clk 0:02:59.6]} 9... bxc6 {[%clk
0:02:41.6]} 10. c4 {[%clk 0:03:01.1]} 10... Qc7 {[%clk 0:02:39.2]} 11. Nc3
{[%clk 0:03:00.6]} 11... Rd8 {[%clk 0:02:36.7]} 12. cxd5 {[%clk 0:03:00.5]}
12... cxd5 {[%clk 0:02:36.3]} 13. Nb5 {[%clk 0:03:00.4]} 13... Qb8 {[%clk
0:02:36.4]} 14. Nd4 {[%clk 0:02:34]} 14... Bd7 {[%clk 0:02:35.9]} 15. Rc1 {[%clk
0:02:34.4]} 15... Qb6 {[%clk 0:02:30]} 16. Nf3 {[%clk 0:02:26]} 16... a5 {[%clk
0:02:28.4]} 17. Bd4 {[%clk 0:02:22]} 17... Qb7 {[%clk 0:02:28.1]} 18. Ne5 {[%clk
0:02:13.9]} 18... Be8 {[%clk 0:02:28]} 19. Qc2 {[%clk 0:02:00.4]} 19... Rdc8
{[%clk 0:02:19.3]} 20. Qb2 {[%clk 0:01:59.9]} 20... Ne4 {[%clk 0:02:14]} 21. Nd3
{[%clk 0:01:39.9]} 21... Bxd4 {[%clk 0:01:33.9]} 22. Qxd4 {[%clk 0:01:41.8]}
22... Nf6 {[%clk 0:01:34.6]} 23. h3 {[%clk 0:01:36.7]} 23... Bb5 {[%clk
0:01:31.1]} 24. Rfd1 {[%clk 0:01:33.3]} 24... Bxd3 {[%clk 0:01:28.5]} 25. Bxd3
{[%clk 0:01:34.1]} 25... Qb4 {[%clk 0:01:24.2]} 26. Qe5 {[%clk 0:01:13.5]} 26...
a4 {[%clk 0:01:07.3]} 27. bxa4 {[%clk 0:00:54.5]} 27... Rxc1 {[%clk 0:00:52.2]}
28. Rxc1 {[%clk 0:00:54.9]} 28... Qd2 {[%clk 0:00:53.7]} 29. Rc3 {[%clk
0:00:28.2]} 29... Qe1+ {[%clk 0:00:54.2]} 30. Kh2 {[%clk 0:00:28.9]} 30... Qxf2
{[%clk 0:00:53.6]} 31. Qxe7 {[%clk 0:00:23.6]} 31... Qh4 {[%clk 0:00:36.2]} 32.
Qd6 {[%clk 0:00:03.4]} 32... Ng4+ {[%clk 0:00:35.2]} 33. Kg1 {[%clk 0:00:02.6]}
33... Qf2+ {[%clk 0:00:33.2]} 34. Kh1 {[%clk 0:00:04]} 34... Qe1+ {[%clk
0:00:33.9]} 0-1

[Event "*** Qualifier 4: Titled Tuesday 3|2 Blitz"]
[Site "Chess.com"]
[Date "2017.04.25"]
[Round "5"]
[White "Hikaru"]
[Black "severomorskij"]
[Result "0-1"]
[WhiteElo "2935"]
[BlackElo "2682"]
[TimeControl "180+2"]
[EndTime "14:03:17 PDT"]
[Termination "severomorskij won by resignation"]

1. c4 {[%clk 0:03:02]} 1... e5 {[%clk 0:03:00.2]} 2. Nc3 {[%clk 0:03:03.7]} 2...
Bb4 {[%clk 0:03:01.1]} 3. g3 {[%clk 0:03:05.6]} 3... Bxc3 {[%clk 0:03:00.2]} 4.
bxc3 {[%clk 0:03:07.5]} 4... d6 {[%clk 0:02:59.9]} 5. Bg2 {[%clk 0:03:08.7]}
5... Ne7 {[%clk 0:02:58.2]} 6. f4 {[%clk 0:03:04.2]} 6... O-O {[%clk 0:02:37.6]}
7. d4 {[%clk 0:02:41.8]} 7... Nbc6 {[%clk 0:02:29.2]} 8. e3 {[%clk 0:02:00.5]}
8... exf4 {[%clk 0:02:05.4]} 9. gxf4 {[%clk 0:01:58.6]} 9... Na5 {[%clk
0:02:05]} 10. Qd3 {[%clk 0:01:44.8]} 10... c6 {[%clk 0:01:41.8]} 11. Nf3 {[%clk
0:01:44]} 11... b6 {[%clk 0:01:42.8]} 12. Ng5 {[%clk 0:01:32.7]} 12... f5 {[%clk
0:01:34.2]} 13. c5 {[%clk 0:01:18.4]} 13... dxc5 {[%clk 0:01:22.3]} 14. O-O
{[%clk 0:01:19.3]} 14... h6 {[%clk 0:01:19]} 15. Nf3 {[%clk 0:01:11.9]} 15...
Be6 {[%clk 0:01:18.2]} 16. Rd1 {[%clk 0:01:13.4]} 16... Bd5 {[%clk 0:01:06.6]}
17. dxc5 {[%clk 0:01:07.4]} 17... bxc5 {[%clk 0:01:05.3]} 18. Ne5 {[%clk
0:01:03.6]} 18... Bxg2 {[%clk 0:00:56.4]} 19. Kxg2 {[%clk 0:01:04.6]} 19... Qxd3
{[%clk 0:00:51.5]} 20. Rxd3 {[%clk 0:01:06.5]} 20... Rfd8 {[%clk 0:00:47.9]} 21.
Ba3 {[%clk 0:01:00.1]} 21... Rxd3 {[%clk 0:00:41.2]} 22. Nxd3 {[%clk 0:01:02]}
22... Nd5 {[%clk 0:00:34.8]} 23. Bxc5 {[%clk 0:01:02.2]} 23... Nc4 {[%clk
0:00:35.8]} 24. Kf2 {[%clk 0:01:02]} 24... Nxc3 {[%clk 0:00:32.7]} 25. Bd4
{[%clk 0:01:03.3]} 25... Ne4+ {[%clk 0:00:32]} 26. Ke2 {[%clk 0:01:04.1]} 26...
Ncd6 {[%clk 0:00:18]} 27. Rg1 {[%clk 0:01:02]} 27... g5 {[%clk 0:00:17.2]} 28.
fxg5 {[%clk 0:01:00.6]} 28... hxg5 {[%clk 0:00:18.1]} 29. h4 {[%clk 0:01:02.3]}
29... g4 {[%clk 0:00:19.2]} 30. Be5 {[%clk 0:01:01.8]} 30... Nf7 {[%clk
0:00:15.4]} 31. Bf4 {[%clk 0:01:01.6]} 31... c5 {[%clk 0:00:14.3]} 32. Rc1
{[%clk 0:01:02.7]} 32... Rc8 {[%clk 0:00:15]} 33. Nb2 {[%clk 0:01:03.4]} 33...
Nfd6 {[%clk 0:00:14.8]} 34. Be5 {[%clk 0:00:54]} 34... c4 {[%clk 0:00:13.9]} 35.
Na4 {[%clk 0:00:55.1]} 35... Kf7 {[%clk 0:00:13.5]} 36. Bd4 {[%clk 0:00:55.7]}
36... Kg6 {[%clk 0:00:12.9]} 37. Be5 {[%clk 0:00:52.3]} 37... Rc6 {[%clk
0:00:12.1]} 38. Bf4 {[%clk 0:00:51]} 38... Ra6 {[%clk 0:00:12.6]} 39. Bxd6
{[%clk 0:00:49]} 39... Rxa4 {[%clk 0:00:12.6]} 40. Be5 {[%clk 0:00:48.5]} 40...
Rxa2+ {[%clk 0:00:13.5]} 41. Ke1 {[%clk 0:00:50]} 41... g3 {[%clk 0:00:10.3]}
42. Rxc4 {[%clk 0:00:50]} 42... g2 {[%clk 0:00:09]} 43. Bh2 {[%clk 0:00:50.2]}
43... Ra1+ {[%clk 0:00:09.5]} 44. Ke2 {[%clk 0:00:51.9]} 44... Rh1 {[%clk
0:00:10.4]} 45. Rc6+ {[%clk 0:00:52.3]} 45... Kh5 {[%clk 0:00:10.6]} 46. Bf4
{[%clk 0:00:53.3]} 0-1

[Event "*** Qualifier 4: Titled Tuesday 3|2 Blitz"]
[Site "Chess.com"]
[Date "2017.04.25"]
[Round "5"]
[White "GM_Huschenbeth"]
[Black "DryCounty"]
[Result "0-1"]
[WhiteElo "2327"]
[BlackElo "2492"]
[TimeControl "180+2"]
[EndTime "14:03:29 PDT"]
[Termination "DryCounty won by resignation"]

1. e4 {[%clk 0:03:02]} 1... e5 {[%clk 0:02:59.9]} 2. Nf3 {[%clk 0:03:02.6]} 2...
Nc6 {[%clk 0:03:00.4]} 3. Bc4 {[%clk 0:03:04.3]} 3... Nf6 {[%clk 0:03:00.7]} 4.
d4 {[%clk 0:03:04.8]} 4... exd4 {[%clk 0:03:01.4]} 5. e5 {[%clk 0:03:06.4]} 5...
d5 {[%clk 0:03:01.9]} 6. Bb5 {[%clk 0:03:07.9]} 6... Ne4 {[%clk 0:03:02.7]} 7.
Nxd4 {[%clk 0:03:09.6]} 7... Bd7 {[%clk 0:03:03.3]} 8. Bxc6 {[%clk 0:03:11.2]}
8... bxc6 {[%clk 0:03:03.9]} 9. O-O {[%clk 0:03:13.1]} 9... Bc5 {[%clk
0:03:04.1]} 10. f3 {[%clk 0:03:14.7]} 10... Ng5 {[%clk 0:03:04.9]} 11. Be3
{[%clk 0:03:16.3]} 11... Bb6 {[%clk 0:03:05.5]} 12. f4 {[%clk 0:03:14.9]} 12...
Ne4 {[%clk 0:03:06]} 13. Nd2 {[%clk 0:03:15.7]} 13... Nxd2 {[%clk 0:03:06.9]}
14. Qxd2 {[%clk 0:03:17.6]} 14... c5 {[%clk 0:03:07.1]} 15. Nf3 {[%clk
0:03:08.1]} 15... d4 {[%clk 0:03:07.5]} 16. Bf2 {[%clk 0:03:09.7]} 16... O-O
{[%clk 0:03:07.6]} 17. a4 {[%clk 0:03:10.5]} 17... a6 {[%clk 0:03:02]} 18. a5
{[%clk 0:03:09.2]} 18... Ba7 {[%clk 0:03:01.5]} 19. b3 {[%clk 0:02:59.3]} 19...
Bb5 {[%clk 0:02:46.9]} 20. Rfe1 {[%clk 0:02:59.4]} 20... Qd7 {[%clk 0:02:38.8]}
21. c4 {[%clk 0:02:45.9]} 21... dxc3 {[%clk 0:02:35.6]} 22. Qxc3 {[%clk
0:02:47.2]} 22... Qf5 {[%clk 0:02:24.8]} 23. Bxc5 {[%clk 0:02:09.3]} 23... Bxc5+
{[%clk 0:02:07.8]} 24. Qxc5 {[%clk 0:02:11.2]} 24... Qxf4 {[%clk 0:02:09]} 25.
Nd4 {[%clk 0:02:12.3]} 25... Bd7 {[%clk 0:01:58]} 26. Rad1 {[%clk 0:02:01.8]}
26... Bg4 {[%clk 0:01:55.7]} 27. Rc1 {[%clk 0:01:52.1]} 27... Rad8 {[%clk
0:01:51.4]} 28. Nc6 {[%clk 0:01:53.2]} 28... Rd2 {[%clk 0:01:43.4]} 29. Ne7+
{[%clk 0:01:53.8]} 29... Kh8 {[%clk 0:01:38.8]} 30. Rf1 {[%clk 0:01:36.4]} 30...
Qe4 {[%clk 0:01:18.5]} 31. Rf2 {[%clk 0:01:11.6]} 31... Rxf2 {[%clk 0:01:18.5]}
32. Kxf2 {[%clk 0:00:50.9]} 32... Re8 {[%clk 0:01:10.4]} 33. Nc6 {[%clk
0:00:33.7]} 33... Bd7 {[%clk 0:01:03.9]} 34. Nd4 {[%clk 0:00:31.3]} 34... Qf4+
{[%clk 0:00:59.2]} 35. Kg1 {[%clk 0:00:30.6]} 35... Qe3+ {[%clk 0:00:59.3]} 36.
Kh1 {[%clk 0:00:31.5]} 36... h6 {[%clk 0:00:51]} 37. h3 {[%clk 0:00:19.1]} 37...
Rxe5 {[%clk 0:00:47.2]} 38. Qc4 {[%clk 0:00:10.1]} 38... Bxh3 {[%clk 0:00:43.9]}
39. Nf3 {[%clk 0:00:04.8]} 39... Rh5 {[%clk 0:00:37.5]} 40. Nh4 {[%clk
0:00:02.6]} 40... Rxh4 {[%clk 0:00:32.7]} 41. Qxh4 {[%clk 0:00:02.3]} 41...
Qxc1+ {[%clk 0:00:33.7]} 42. Kh2 {[%clk 0:00:04.2]} 42... Be6 {[%clk 0:00:33.7]}
0-1

[Event "*** Qualifier 4: Titled Tuesday 3|2 Blitz"]
[Site "Chess.com"]
[Date "2017.04.25"]
[Round "5"]
[White "Goala"]
[Black "feigelag"]
[Result "0-1"]
[WhiteElo "2350"]
[BlackElo "2305"]
[TimeControl "180+2"]
[EndTime "14:03:30 PDT"]
[Termination "feigelag won by checkmate"]

1. d4 {[%clk 0:03:02]} 1... Nf6 {[%clk 0:02:55.6]} 2. c4 {[%clk 0:03:02.8]} 2...
e6 {[%clk 0:02:55.5]} 3. Nf3 {[%clk 0:03:03.8]} 3... d5 {[%clk 0:02:56.1]} 4. e3
{[%clk 0:03:04.6]} 4... Be7 {[%clk 0:02:53.9]} 5. Nc3 {[%clk 0:03:04.4]} 5...
O-O {[%clk 0:02:54.8]} 6. Qc2 {[%clk 0:03:01]} 6... b6 {[%clk 0:02:55.1]} 7. b3
{[%clk 0:03:00.8]} 7... Bb7 {[%clk 0:02:55.6]} 8. Bd3 {[%clk 0:03:01.5]} 8...
Nbd7 {[%clk 0:02:55.2]} 9. Bb2 {[%clk 0:02:53.1]} 9... c5 {[%clk 0:02:53]} 10.
cxd5 {[%clk 0:02:53.3]} 10... exd5 {[%clk 0:02:49.8]} 11. O-O {[%clk 0:02:51.6]}
11... h6 {[%clk 0:02:43.7]} 12. Rfd1 {[%clk 0:02:44.8]} 12... Rc8 {[%clk
0:02:40.1]} 13. Bf5 {[%clk 0:02:44.2]} 13... Re8 {[%clk 0:02:25.6]} 14. Rac1
{[%clk 0:02:42]} 14... Qc7 {[%clk 0:02:17.4]} 15. Qe2 {[%clk 0:02:35.1]} 15...
Rcd8 {[%clk 0:02:15]} 16. Bh3 {[%clk 0:02:10.7]} 16... Qb8 {[%clk 0:02:12.8]}
17. g3 {[%clk 0:02:11.4]} 17... Nf8 {[%clk 0:02:05]} 18. Na4 {[%clk 0:02:03.6]}
18... c4 {[%clk 0:02:03.1]} 19. bxc4 {[%clk 0:01:51.1]} 19... dxc4 {[%clk
0:02:02.4]} 20. Bg2 {[%clk 0:01:35.7]} 20... Qa8 {[%clk 0:01:50.2]} 21. Nh4
{[%clk 0:01:24.3]} 21... Bxg2 {[%clk 0:01:49]} 22. Nxg2 {[%clk 0:01:26.2]} 22...
Ne6 {[%clk 0:01:47.4]} 23. f4 {[%clk 0:01:02.9]} 23... b5 {[%clk 0:01:42.5]} 24.
Nc3 {[%clk 0:01:03.7]} 24... b4 {[%clk 0:01:43.5]} 25. Nb1 {[%clk 0:00:52.5]}
25... c3 {[%clk 0:01:38.4]} 26. Ba1 {[%clk 0:00:46.1]} 26... a5 {[%clk
0:01:38.2]} 27. Ne1 {[%clk 0:00:44.6]} 27... Qe4 {[%clk 0:01:36.3]} 28. Nf3
{[%clk 0:00:37.4]} 28... Nd5 {[%clk 0:01:32.4]} 29. Re1 {[%clk 0:00:28.8]} 29...
Bf6 {[%clk 0:01:30.2]} 30. Ne5 {[%clk 0:00:27.1]} 30... Nxd4 {[%clk 0:01:23.1]}
31. exd4 {[%clk 0:00:23.8]} 31... Qxd4+ {[%clk 0:01:25]} 32. Kg2 {[%clk
0:00:20.9]} 32... Qxf4 {[%clk 0:01:21]} 33. gxf4 {[%clk 0:00:10.9]} 33... Nxf4+
{[%clk 0:01:22.9]} 34. Kf3 {[%clk 0:00:12.5]} 34... Nxe2 {[%clk 0:01:22.3]} 35.
Rxe2 {[%clk 0:00:13.7]} 35... Rxe5 {[%clk 0:01:17.8]} 36. Rce1 {[%clk
0:00:10.2]} 36... Rxe2 {[%clk 0:01:12.5]} 37. Rxe2 {[%clk 0:00:12.1]} 37... Rd1
{[%clk 0:01:11.2]} 38. Nxc3 {[%clk 0:00:09.8]} 38... bxc3 {[%clk 0:01:11.5]} 39.
Bxc3 {[%clk 0:00:08.9]} 39... Bxc3 {[%clk 0:01:11.3]} 40. Rc2 {[%clk 0:00:10.2]}
40... Bf6 {[%clk 0:01:09.3]} 41. Rc8+ {[%clk 0:00:10.7]} 41... Kh7 {[%clk
0:01:10.6]} 42. Rc5 {[%clk 0:00:12.3]} 42... a4 {[%clk 0:01:07.1]} 43. Ra5
{[%clk 0:00:12.2]} 43... Rd4 {[%clk 0:01:06.8]} 44. Ke3 {[%clk 0:00:12.3]} 44...
Rh4 {[%clk 0:01:04.4]} 45. Ra6 {[%clk 0:00:09.7]} 45... a3 {[%clk 0:01:05.2]}
46. Kf3 {[%clk 0:00:07.1]} 46... Rxh2 {[%clk 0:01:03]} 47. Rxa3 {[%clk
0:00:07.2]} 47... Rh3+ {[%clk 0:01:03.8]} 48. Kg4 {[%clk 0:00:08.4]} 48... Rxa3
{[%clk 0:01:05.7]} 49. Kh5 {[%clk 0:00:09.4]} 49... Ra4 {[%clk 0:01:01.6]} 50.
a3 {[%clk 0:00:08.9]} 50... g6# {[%clk 0:01:01.8]} 0-1

[Event "*** Qualifier 4: Titled Tuesday 3|2 Blitz"]
[Site "Chess.com"]
[Date "2017.04.25"]
[Round "5"]
[White "WeiYi1999"]
[Black "ruvat"]
[Result "1-0"]
[WhiteElo "2073"]
[BlackElo "2225"]
[TimeControl "180+2"]
[EndTime "14:03:33 PDT"]
[Termination "WeiYi1999 won on time"]

1. e4 {[%clk 0:02:58.6]} 1... d6 {[%clk 0:03:00.9]} 2. d4 {[%clk 0:02:59.3]}
2... Nf6 {[%clk 0:03:01.9]} 3. Nc3 {[%clk 0:03:00.7]} 3... g6 {[%clk 0:03:03.1]}
4. h4 {[%clk 0:03:01.5]} 4... h5 {[%clk 0:03:02.6]} 5. Bg5 {[%clk 0:02:57.9]}
5... Bg7 {[%clk 0:03:03.2]} 6. Qd2 {[%clk 0:02:51.4]} 6... Nc6 {[%clk
0:02:59.4]} 7. O-O-O {[%clk 0:02:52.1]} 7... a6 {[%clk 0:02:54.3]} 8. Kb1 {[%clk
0:02:47.8]} 8... Nh7 {[%clk 0:02:47.1]} 9. Be3 {[%clk 0:02:43.1]} 9... e5 {[%clk
0:02:46.4]} 10. dxe5 {[%clk 0:02:36.5]} 10... Nxe5 {[%clk 0:02:42.8]} 11. f4
{[%clk 0:02:33.2]} 11... Ng4 {[%clk 0:02:42.9]} 12. Nf3 {[%clk 0:02:29.4]} 12...
Nxe3 {[%clk 0:02:39.6]} 13. Qxe3 {[%clk 0:02:31.3]} 13... O-O {[%clk 0:02:29.8]}
14. f5 {[%clk 0:02:28.3]} 14... b5 {[%clk 0:02:14.1]} 15. fxg6 {[%clk
0:02:22.6]} 15... fxg6 {[%clk 0:02:14.6]} 16. Qd3 {[%clk 0:02:19.6]} 16... Be6
{[%clk 0:02:00.5]} 17. Nd5 {[%clk 0:02:16]} 17... Nf6 {[%clk 0:01:44.9]} 18. Nd4
{[%clk 0:02:06.8]} 18... Bd7 {[%clk 0:01:36.6]} 19. Be2 {[%clk 0:02:01.7]} 19...
c6 {[%clk 0:01:27.8]} 20. Nxf6+ {[%clk 0:01:53]} 20... Qxf6 {[%clk 0:01:21.9]}
21. c3 {[%clk 0:01:54.9]} 21... Rad8 {[%clk 0:01:06]} 22. Rhf1 {[%clk 0:01:48]}
22... Qxh4 {[%clk 0:01:05]} 23. Rxf8+ {[%clk 0:01:19.6]} 23... Bxf8 {[%clk
0:01:01.5]} 24. Nf3 {[%clk 0:01:21.5]} 24... Qf6 {[%clk 0:01:00.4]} 25. Qe3
{[%clk 0:01:18.3]} 25... a5 {[%clk 0:00:47.9]} 26. e5 {[%clk 0:01:15.1]} 26...
dxe5 {[%clk 0:00:30.7]} 27. Ka1 {[%clk 0:00:52]} 27... Bf5 {[%clk 0:00:21.9]}
28. Rxd8 {[%clk 0:00:53.9]} 28... Qxd8 {[%clk 0:00:22.8]} 29. Nxe5 {[%clk
0:00:50.4]} 29... Qf6 {[%clk 0:00:21.3]} 30. Nf3 {[%clk 0:00:48.6]} 30... Bg7
{[%clk 0:00:18.6]} 31. Qa7 {[%clk 0:00:36.7]} 31... a4 {[%clk 0:00:18.5]} 32. a3
{[%clk 0:00:35.6]} 32... Be4 {[%clk 0:00:18.1]} 33. Qe3 {[%clk 0:00:33.9]} 33...
Bd5 {[%clk 0:00:16.5]} 34. Bd3 {[%clk 0:00:32.8]} 34... Qe6 {[%clk 0:00:12.9]}
35. Qxe6+ {[%clk 0:00:30.8]} 35... Bxe6 {[%clk 0:00:14]} 36. Bxg6 {[%clk
0:00:32.7]} 36... Bg4 {[%clk 0:00:13.2]} 37. Nd4 {[%clk 0:00:30.7]} 37... Bxd4
{[%clk 0:00:10.1]} 38. cxd4 {[%clk 0:00:32.6]} 38... h4 {[%clk 0:00:05.8]} 39.
Be8 {[%clk 0:00:31.1]} 1-0

[Event "*** Qualifier 4: Titled Tuesday 3|2 Blitz"]
[Site "Chess.com"]
[Date "2017.04.25"]
[Round "5"]
[White "djano"]
[Black "GMBenjaminBok"]
[Result "0-1"]
[WhiteElo "2422"]
[BlackElo "2626"]
[TimeControl "180+2"]
[EndTime "14:03:36 PDT"]
[Termination "GMBenjaminBok won by checkmate"]

1. d4 {[%clk 0:03:02]} 1... g6 {[%clk 0:02:59.8]} 2. Bf4 {[%clk 0:03:01.3]} 2...
Bg7 {[%clk 0:03:00.9]} 3. Nc3 {[%clk 0:03:01.8]} 3... c5 {[%clk 0:02:55.7]} 4.
e3 {[%clk 0:02:59.2]} 4... cxd4 {[%clk 0:02:50.7]} 5. exd4 {[%clk 0:03:01.1]}
5... Nf6 {[%clk 0:02:45.2]} 6. Qd2 {[%clk 0:02:59.7]} 6... O-O {[%clk
0:02:44.4]} 7. Bh6 {[%clk 0:02:58.8]} 7... d5 {[%clk 0:02:43.2]} 8. h4 {[%clk
0:02:54.7]} 8... Bf5 {[%clk 0:02:40.9]} 9. h5 {[%clk 0:02:51.3]} 9... gxh5
{[%clk 0:02:27.9]} 10. Bxg7 {[%clk 0:02:45.3]} 10... Kxg7 {[%clk 0:02:28]} 11.
O-O-O {[%clk 0:02:39.9]} 11... Bg6 {[%clk 0:02:28.7]} 12. Nf3 {[%clk 0:02:36.5]}
12... Nc6 {[%clk 0:02:29.3]} 13. Ne5 {[%clk 0:02:28.6]} 13... Rc8 {[%clk
0:02:25.2]} 14. f4 {[%clk 0:02:27.7]} 14... Ne4 {[%clk 0:02:13.8]} 15. Nxe4
{[%clk 0:02:24.1]} 15... dxe4 {[%clk 0:02:12.6]} 16. f5 {[%clk 0:01:54.3]} 16...
Nxe5 {[%clk 0:02:12.8]} 17. fxg6 {[%clk 0:01:54]} 17... Nxg6 {[%clk 0:02:07.6]}
18. Rxh5 {[%clk 0:01:53.2]} 18... Rh8 {[%clk 0:02:08.4]} 19. Qh6+ {[%clk
0:01:47.9]} 19... Kg8 {[%clk 0:02:09.1]} 20. Be2 {[%clk 0:01:38.2]} 20... Qc7
{[%clk 0:02:09.5]} 21. Rc5 {[%clk 0:01:35.1]} 21... Qb8 {[%clk 0:02:04.6]} 22.
Kb1 {[%clk 0:01:25.8]} 22... b6 {[%clk 0:02:00.2]} 23. Rf5 {[%clk 0:01:23.4]}
23... Qg3 {[%clk 0:01:44.9]} 24. Rdf1 {[%clk 0:01:17.1]} 24... f6 {[%clk
0:01:28.1]} 25. b3 {[%clk 0:00:53.6]} 25... Qc3 {[%clk 0:01:16.8]} 26. Rc1
{[%clk 0:00:38.1]} 26... Kf7 {[%clk 0:01:15.6]} 27. Bh5 {[%clk 0:00:38.9]} 27...
a5 {[%clk 0:01:09.3]} 28. g4 {[%clk 0:00:31.9]} 28... a4 {[%clk 0:01:05.7]} 29.
bxa4 {[%clk 0:00:25.1]} 29... Qb4+ {[%clk 0:01:06.3]} 30. Ka1 {[%clk 0:00:25.6]}
30... Qxd4+ {[%clk 0:01:07.9]} 31. Kb1 {[%clk 0:00:25.2]} 31... Qb4+ {[%clk
0:00:58.9]} 32. Ka1 {[%clk 0:00:25.3]} 32... Qc3+ {[%clk 0:01:00.8]} 33. Kb1
{[%clk 0:00:26.4]} 33... Qb4+ {[%clk 0:00:39.9]} 34. Ka1 {[%clk 0:00:26.4]}
34... Qxa4 {[%clk 0:00:41.4]} 35. Qd2 {[%clk 0:00:18.8]} 35... Rhd8 {[%clk
0:00:30.3]} 36. Qh6 {[%clk 0:00:19.7]} 36... Rxc2 {[%clk 0:00:24.1]} 37. Rxf6+
{[%clk 0:00:14.8]} 37... exf6 {[%clk 0:00:17.3]} 38. Qxh7+ {[%clk 0:00:13.4]}
38... Ke6 {[%clk 0:00:18.2]} 39. Rxc2 {[%clk 0:00:10.1]} 39... Rd1+ {[%clk
0:00:16.2]} 40. Kb2 {[%clk 0:00:10.3]} 40... Qb4# {[%clk 0:00:17.2]} 0-1

[Event "*** Qualifier 4: Titled Tuesday 3|2 Blitz"]
[Site "Chess.com"]
[Date "2017.04.25"]
[Round "5"]
[White "woodhy"]
[Black "gumersindo"]
[Result "1/2-1/2"]
[WhiteElo "2394"]
[BlackElo "2277"]
[TimeControl "180+2"]
[EndTime "14:03:44 PDT"]
[Termination "Game drawn by repetition"]

1. e4 {[%clk 0:03:02]} 1... e5 {[%clk 0:03:00.7]} 2. Nf3 {[%clk 0:03:03.1]} 2...
Nc6 {[%clk 0:03:01.3]} 3. Bb5 {[%clk 0:03:03.8]} 3... a6 {[%clk 0:02:58.1]} 4.
Bxc6 {[%clk 0:03:05.1]} 4... dxc6 {[%clk 0:02:59]} 5. O-O {[%clk 0:03:07]} 5...
f6 {[%clk 0:02:59.9]} 6. Qe2 {[%clk 0:03:07]} 6... c5 {[%clk 0:02:47.8]} 7. Rd1
{[%clk 0:03:05.7]} 7... Bd6 {[%clk 0:02:48.4]} 8. c3 {[%clk 0:03:06.3]} 8... Bg4
{[%clk 0:02:41.3]} 9. h3 {[%clk 0:03:07.3]} 9... Bh5 {[%clk 0:02:37.7]} 10. d4
{[%clk 0:03:07.9]} 10... cxd4 {[%clk 0:02:35.3]} 11. cxd4 {[%clk 0:03:09.8]}
11... exd4 {[%clk 0:02:35.6]} 12. g4 {[%clk 0:03:03.4]} 12... Bf7 {[%clk
0:02:30.1]} 13. Nxd4 {[%clk 0:02:35.8]} 13... Ne7 {[%clk 0:02:19.7]} 14. Nc3
{[%clk 0:01:59.9]} 14... O-O {[%clk 0:02:18.4]} 15. Be3 {[%clk 0:01:54.7]} 15...
Qb8 {[%clk 0:02:02.3]} 16. Qf3 {[%clk 0:01:42.1]} 16... c5 {[%clk 0:01:58]} 17.
Nde2 {[%clk 0:01:37.3]} 17... b5 {[%clk 0:01:53.5]} 18. Bf4 {[%clk 0:01:32.7]}
18... Bxf4 {[%clk 0:01:52.7]} 19. Nxf4 {[%clk 0:01:34.6]} 19... Nc6 {[%clk
0:01:52.2]} 20. Qe3 {[%clk 0:01:10.4]} 20... Nd4 {[%clk 0:01:52.8]} 21. Rac1
{[%clk 0:01:07.3]} 21... Re8 {[%clk 0:01:44]} 22. Nce2 {[%clk 0:01:01.1]} 22...
Nxe2+ {[%clk 0:01:37]} 23. Nxe2 {[%clk 0:01:00.4]} 23... Qe5 {[%clk 0:01:19.8]}
24. Rxc5 {[%clk 0:00:54.2]} 24... Qxb2 {[%clk 0:01:18.2]} 25. Rd2 {[%clk
0:00:52.6]} 25... Qb1+ {[%clk 0:01:09]} 26. Kh2 {[%clk 0:00:43.4]} 26... Qxe4
{[%clk 0:01:02.4]} 27. Qxe4 {[%clk 0:00:43.3]} 27... Rxe4 {[%clk 0:01:03.4]} 28.
Rc7 {[%clk 0:00:41.7]} 28... Rae8 {[%clk 0:00:55.8]} 29. Rdd7 {[%clk 0:00:32]}
29... Rxe2 {[%clk 0:00:30.4]} 30. Rxf7 {[%clk 0:00:32.4]} 30... Rxf2+ {[%clk
0:00:25.7]} 31. Kg3 {[%clk 0:00:33.6]} 31... Rxa2 {[%clk 0:00:26.2]} 32. Rxg7+
{[%clk 0:00:34.4]} 32... Kh8 {[%clk 0:00:26.1]} 33. Rxh7+ {[%clk 0:00:36.3]}
33... Kg8 {[%clk 0:00:27.2]} 34. Rcg7+ {[%clk 0:00:35.7]} 34... Kf8 {[%clk
0:00:28.5]} 35. Rf7+ {[%clk 0:00:35.6]} 35... Kg8 {[%clk 0:00:29.6]} 36. Rfg7+
{[%clk 0:00:37.5]} 36... Kf8 {[%clk 0:00:30.6]} 37. Ra7 {[%clk 0:00:39.4]} 37...
Kg8 {[%clk 0:00:31.4]} 38. Kh4 {[%clk 0:00:39.8]} 38... Ra3 {[%clk 0:00:23.5]}
39. Rag7+ {[%clk 0:00:38.4]} 39... Kf8 {[%clk 0:00:24.2]} 40. Rf7+ {[%clk
0:00:39.7]} 40... Kg8 {[%clk 0:00:25.4]} 41. Rfg7+ {[%clk 0:00:39.3]} 41... Kf8
{[%clk 0:00:26.6]} 42. Rb7 {[%clk 0:00:39.8]} 42... Kg8 {[%clk 0:00:27.2]} 43.
Rhg7+ {[%clk 0:00:31.7]} 43... Kh8 {[%clk 0:00:28.1]} 44. Rh7+ {[%clk
0:00:25.2]} 44... Kg8 {[%clk 0:00:29]} 45. Rbg7+ {[%clk 0:00:27.1]} 45... Kf8
{[%clk 0:00:30.1]} 1/2-1/2